Department Family,Entity,Paid Date,Expense Type,Expense Area,Supplier,Transaction No,Amount,Description,Post Code
Department of Health,NHS Business Services Authority,31/03/2022,Civil Service Pension,Statutory Payments,CABINET OFFICE CIVIL SERVICE PENSIONS,0080129528,"51,877.52",CONTRIBUTIONS MAR 2022,RG24 9NW
Department of Health,NHS Business Services Authority,31/03/2022,IT Hardware Purchases,Technology,COMPUTACENTER (UK) LTD,0080129032,"42,654.70",Product: Latitude 5420 i5 8GB M.2 256GB ,AL10 9TW
Department of Health,NHS Business Services Authority,22/03/2022,Scanner Maintenance,Primary Care Services,COMPUTACENTER (UK) LTD,0080129321,"389,390.63","Support, maintenance and software ",AL10 9TW
Department of Health,NHS Business Services Authority,18/03/2022,Minor Works,Finance & Commercial,COMPASS SERVICES UK & IRELAND LTD,0080129182,"26,707.72",TO.CE.102 - Additional cleaning ,B45 9PZ
Department of Health,NHS Business Services Authority,18/03/2022,Soft FM Contract,Finance & Commercial,COMPASS SERVICES UK & IRELAND LTD,0080129183,"164,904.49",Combined  Soft FM Contract extension  ,B45 9PZ
Department of Health,NHS Business Services Authority,31/03/2022,Minor Works,Finance & Commercial,COMPASS SERVICES UK & IRELAND LTD,0080129492,"26,456.70",TO.CE.102 - Additional cleaning ,B45 9PZ
Department of Health,NHS Business Services Authority,31/03/2022,Soft FM Contract,Finance & Commercial,COMPASS SERVICES UK & IRELAND LTD,0080129493,"164,904.49",Combined  Soft FM Contract extension  ,B45 9PZ
Department of Health,NHS Business Services Authority,18/03/2022,Rent,Finance & Commercial,EMERSON MANAGEMENT SERVICES,0080128867,"139,821.00",QTR CAR PARK RENT 25/03-23/06/2022,SK9 7LF
Department of Health,NHS Business Services Authority,08/03/2022,IBM - Baseline,NHS Workforce Services,IBM UK LTD,0080128925,"2,033,900.63",IBM ESR Service Charges FY21-25,PO6 3AF
Department of Health,NHS Business Services Authority,18/03/2022,Software,NHS Workforce Services,IBM UK LTD,0080128926,"372,715.83",DCT 01.01.22-31.01.22,PO6 3AF
Department of Health,NHS Business Services Authority,18/03/2022,Software,NHS Workforce Services,IBM UK LTD,0080128927,"25,027.38",SUPPORT FEB 2022,PO6 3AF
Department of Health,NHS Business Services Authority,08/03/2022,IBM Exp's Sol - Implementation,NHS Workforce Services,IBM UK LTD,0080128928,"22,124.74",IBM ESR Expense Solutions ,PO6 3AF
Department of Health,NHS Business Services Authority,11/03/2022,General Maintenance,Primary Care Services,INTEGRATED HEALTH PROJECTS,0080128973,"3,872.70",CE-74.15 .Middlebrook Ground Floor- ,HP2 7TR
Department of Health,NHS Business Services Authority,11/03/2022,Minor Works,Finance & Commercial,INTEGRATED HEALTH PROJECTS,0080128973,"1,619.86","TO.CE-77.5, Bridge House - 1st Floor ",HP2 7TR
Department of Health,NHS Business Services Authority,11/03/2022,Hard FM Reactive,Finance & Commercial,INTEGRATED HEALTH PROJECTS,0080128973,51.00,CE 86.1 - Stage 2 - City Gate Server ,HP2 7TR
Department of Health,NHS Business Services Authority,11/03/2022,Hard FM Reactive,Finance & Commercial,INTEGRATED HEALTH PROJECTS,0080128973,"2,347.91",TO. CE 74.11 - Stella House Gas Supply ,HP2 7TR
Department of Health,NHS Business Services Authority,11/03/2022,Hard FM Reactive,Finance & Commercial,INTEGRATED HEALTH PROJECTS,0080128973,101.99,TO-CE-78.2 Fire Compartment Surveys,HP2 7TR
Department of Health,NHS Business Services Authority,11/03/2022,Hard FM Reactive,Finance & Commercial,INTEGRATED HEALTH PROJECTS,0080128973,"8,585.14",CE 76.5 - Bridge House Toilet ,HP2 7TR
Department of Health,NHS Business Services Authority,11/03/2022,Minor Works,Finance & Commercial,INTEGRATED HEALTH PROJECTS,0080128973,"13,495.58",TO.CE-83.1 � Server room works � ,HP2 7TR
Department of Health,NHS Business Services Authority,11/03/2022,Professional Fees,Finance & Commercial,INTEGRATED HEALTH PROJECTS,0080128973,"9,982.27",TO.CE-81.1 Zero Emissions Programme ,HP2 7TR
Department of Health,NHS Business Services Authority,11/03/2022,Minor Works,Finance & Commercial,INTEGRATED HEALTH PROJECTS,0080128973,"9,706.07",CE-80.2 Relocation of Equipment to ,HP2 7TR
Department of Health,NHS Business Services Authority,11/03/2022,Minor Works,Finance & Commercial,INTEGRATED HEALTH PROJECTS,0080128973,"10,070.47",CE 80.12 - Stage 2 Greenfinch 1st Floor ,HP2 7TR
Department of Health,NHS Business Services Authority,11/03/2022,Minor Works,Finance & Commercial,INTEGRATED HEALTH PROJECTS,0080128973,"10,160.57",CE 80.10 - Greenfinch Power & Data ,HP2 7TR
Department of Health,NHS Business Services Authority,11/03/2022,Minor Works,Finance & Commercial,INTEGRATED HEALTH PROJECTS,0080128973,"3,008.28",CE 85.1 - Benton Dilapidation Stage 1 ,HP2 7TR
Department of Health,NHS Business Services Authority,11/03/2022,Minor Works,Finance & Commercial,INTEGRATED HEALTH PROJECTS,0080128973,"25,680.19",CE 80.11 - GF new forklift and machine ,HP2 7TR
Department of Health,NHS Business Services Authority,11/03/2022,Building Works,Finance & Commercial,INTEGRATED HEALTH PROJECTS,0080128973,"185,126.58",TO.CE-75.6 HH - Computer Suite Roof ,HP2 7TR
Department of Health,NHS Business Services Authority,11/03/2022,Building Works,Finance & Commercial,INTEGRATED HEALTH PROJECTS,0080128973,471.42,TO.CE-82.1 Greenfinch Gas Removal Stage ,HP2 7TR
Department of Health,NHS Business Services Authority,11/03/2022,Building Works,Finance & Commercial,INTEGRATED HEALTH PROJECTS,0080128973,"101,284.32",TO.CE-79.3 Greenfinch Way Sprinkler ,HP2 7TR
Department of Health,NHS Business Services Authority,11/03/2022,Building Works,Finance & Commercial,INTEGRATED HEALTH PROJECTS,0080128973,"4,082.47",TO.CE 80.9 Greenfinch Way relocate ,HP2 7TR
Department of Health,NHS Business Services Authority,25/03/2022,Minor Works,Finance & Commercial,INTEGRATED HEALTH PROJECTS,0080129337,"2,565.65",TO.CE-77.4 Hesketh House - Computer ,HP2 7TR
Department of Health,NHS Business Services Authority,25/03/2022,Hard FM Reactive,Finance & Commercial,INTEGRATED HEALTH PROJECTS,0080129337,"9,693.53",TO. CE 74.11 - Stella House Gas Supply ,HP2 7TR
Department of Health,NHS Business Services Authority,25/03/2022,Hard FM Reactive,Finance & Commercial,INTEGRATED HEALTH PROJECTS,0080129337,"21,530.20",CE 74.16 - Stage 2 BH Cladding ,HP2 7TR
Department of Health,NHS Business Services Authority,25/03/2022,Hard FM Reactive,Finance & Commercial,INTEGRATED HEALTH PROJECTS,0080129337,67.98,CE 86.1 - Stage 2 - City Gate Server ,HP2 7TR
Department of Health,NHS Business Services Authority,25/03/2022,Hard FM Reactive,Finance & Commercial,INTEGRATED HEALTH PROJECTS,0080129337,"4,456.67",CE 76.5 - Bridge House Toilet ,HP2 7TR
Department of Health,NHS Business Services Authority,25/03/2022,Minor Works,Finance & Commercial,INTEGRATED HEALTH PROJECTS,0080129337,"24,448.19",TO.CE-83.1 � Server room works � ,HP2 7TR
Department of Health,NHS Business Services Authority,25/03/2022,Professional Fees,Finance & Commercial,INTEGRATED HEALTH PROJECTS,0080129337,"14,107.09",TO.CE-81.1 Zero Emissions Programme ,HP2 7TR
Department of Health,NHS Business Services Authority,25/03/2022,Minor Works,Finance & Commercial,INTEGRATED HEALTH PROJECTS,0080129337,"49,215.42",CE 80.11 - GF new forklift and machine ,HP2 7TR
Department of Health,NHS Business Services Authority,25/03/2022,Dilapidations,Finance & Commercial,INTEGRATED HEALTH PROJECTS,0080129337,"13,644.55",CE 85.3 - Stage 2 Benton Dilapidation - ,HP2 7TR
Department of Health,NHS Business Services Authority,25/03/2022,Dilapidations,Finance & Commercial,INTEGRATED HEALTH PROJECTS,0080129337,"12,263.51",CE 85.2 - Stage 2 Benton Delapidation - ,HP2 7TR
Department of Health,NHS Business Services Authority,25/03/2022,Building Works,Finance & Commercial,INTEGRATED HEALTH PROJECTS,0080129337,"81,804.26",TO.CE-75.6 HH - Computer Suite Roof ,HP2 7TR
Department of Health,NHS Business Services Authority,25/03/2022,Building Works,Finance & Commercial,INTEGRATED HEALTH PROJECTS,0080129337,"18,681.06",TO.CE-79.3 Greenfinch Way Sprinkler ,HP2 7TR
Department of Health,NHS Business Services Authority,25/03/2022,Building Works,Finance & Commercial,INTEGRATED HEALTH PROJECTS,0080129337,534.47,TO.CE-82.2 Greenfinch Way Extension ,HP2 7TR
Department of Health,NHS Business Services Authority,04/03/2022,Telephony - Core User Profiles,Technology,KCOM,0080128242,"9,616.20",Video Conferencing Licences,HU1 3RE
Department of Health,NHS Business Services Authority,04/03/2022,Telephony - Core User Profiles,Technology,KCOM,0080128242,"27,520.50",Annual Service Charges Lot 10 Unified ,HU1 3RE
Department of Health,NHS Business Services Authority,04/03/2022,Telephony - CC Inbound,Technology,KCOM,0080128242,"2,795.40",Contact Centre Homeworkers,HU1 3RE
Department of Health,NHS Business Services Authority,04/03/2022,Telephony - CC Inbound,Technology,KCOM,0080128242,"64,386.00",Contact Centre Telephony,HU1 3RE
Department of Health,NHS Business Services Authority,18/03/2022,Telephony - Core User Profiles,Technology,KCOM,0080129014,"9,616.20",Video Conferencing Licences,HU1 3RE
Department of Health,NHS Business Services Authority,18/03/2022,Telephony - Core User Profiles,Technology,KCOM,0080129014,"27,520.50",Annual Service Charges Lot 10 Unified ,HU1 3RE
Department of Health,NHS Business Services Authority,18/03/2022,Telephony - CC Inbound,Technology,KCOM,0080129014,"2,795.40",Contact Centre Homeworkers,HU1 3RE
Department of Health,NHS Business Services Authority,18/03/2022,Telephony - CC Inbound,Technology,KCOM,0080129014,"64,386.00",Contact Centre Telephony,HU1 3RE
Department of Health,NHS Business Services Authority,18/03/2022,Telephony - Core User Profiles,Technology,KCOM,0080129191,"11,551.20",Bulk Agent Reskilling Service,HU1 3RE
Department of Health,NHS Business Services Authority,18/03/2022,Telephony - Core User Profiles,Technology,KCOM,0080129191,"2,836.80",Support for Additional 45 Spider Phones,HU1 3RE
Department of Health,NHS Business Services Authority,18/03/2022,Telephony - Core User Profiles,Technology,KCOM,0080129191,398.45,Screen Recording Service,HU1 3RE
Department of Health,NHS Business Services Authority,18/03/2022,Enterprise Video Services,Technology,KCOM,0080129191,"31,258.80",Video Conferencing,HU1 3RE
Department of Health,NHS Business Services Authority,31/03/2022,Oracle Maintenance,Insight,ORACLE CORPORATION UK LTD,0080129018,"345,600.00",Purchase of Oracle Universal Credits to ,RG6 1RA
Department of Health,NHS Business Services Authority,31/03/2022,Oracle Maintenance,Insight,ORACLE CORPORATION UK LTD,0080129018,"14,400.00",misc,RG6 1RA
Department of Health,NHS Business Services Authority,31/03/2022,Oracle Maintenance,Technology,ORACLE CORPORATION UK LTD,0080129083,"49,063.82","Licences, Support and Maintenance - ",RG6 1RA
Department of Health,NHS Business Services Authority,31/03/2022,Oracle Maintenance,Technology,ORACLE CORPORATION UK LTD,0080129083,"25,876.78",Oracle Licence and Support Agreement ,RG6 1RA
Department of Health,NHS Business Services Authority,04/03/2022,Internal Audit Fees,Corp Services & Corp Secretary,PRICEWATERHOUSE COOPERS LLP,0080128743,"33,970.36",52.23 days on TPA audit in January 2022,SE1 2RD 
Department of Health,NHS Business Services Authority,04/03/2022,Postage Charges,Citizen Services,ROYAL MAIL,0080128466,266.45,A/C 0912819049,S49 1HQ
Department of Health,NHS Business Services Authority,04/03/2022,Postage Charges,Citizen Services,ROYAL MAIL,0080128466,"33,594.03",A/C 0912819049,S49 1HQ
Department of Health,NHS Business Services Authority,04/03/2022,Postage Charges,Citizen Services,ROYAL MAIL,0080128494,"24,221.31",A/C0912819049,S49 1HQ
Department of Health,NHS Business Services Authority,04/03/2022,Postage Charges,Citizen Services,ROYAL MAIL,0080128494,126.40,A/C0912819049,S49 1HQ
Department of Health,NHS Business Services Authority,15/03/2022,Postage Charges,Citizen Services,ROYAL MAIL,0080128808,107.20,AC 0912819049,S49 1HQ
Department of Health,NHS Business Services Authority,15/03/2022,Postage Charges,Citizen Services,ROYAL MAIL,0080128808,"27,856.90",AC 0912819049,S49 1HQ
Department of Health,NHS Business Services Authority,18/03/2022,Postage Charges,Citizen Services,ROYAL MAIL,0080128809,"21,085.79",AC 0912819048,S49 1HQ
Department of Health,NHS Business Services Authority,18/03/2022,Postage Charges,Citizen Services,ROYAL MAIL,0080129080,"44,635.28",A/C 0912819049,S49 1HQ
Department of Health,NHS Business Services Authority,18/03/2022,Postage Charges,Citizen Services,ROYAL MAIL,0080129080,216.00,A/C 0912819049,S49 1HQ
Department of Health,NHS Business Services Authority,18/03/2022,Postage Charges,Citizen Services,ROYAL MAIL,0080129157,137.60,A/C 0912819049,S49 1HQ
Department of Health,NHS Business Services Authority,18/03/2022,Postage Charges,Citizen Services,ROYAL MAIL,0080129157,"22,410.62",A/C 0912819049,S49 1HQ
Department of Health,NHS Business Services Authority,29/03/2022,Postage Charges,Citizen Services,ROYAL MAIL,0080129387,"25,684.25",A/C 0912819049,S49 1HQ
Department of Health,NHS Business Services Authority,29/03/2022,Postage Charges,Citizen Services,ROYAL MAIL,0080129387,91.20,A/C 0912819049,S49 1HQ
Department of Health,NHS Business Services Authority,08/03/2022,Software Licences,NHS Workforce Services,TRUSTMARQUE SOLUTIONS LTD,0080128756,"32,303.34",The contract with Trustmarque Solutions ,YO41 1LZ
Department of Health,NHS Business Services Authority,11/03/2022,NHS Pension Add Ers Cont,Statutory Payments,NHS PENSIONS ,0080128657,"673,406.58",ERS2518 INCREASE EMP CONTRIBUTIONS,FY7 8LG
Department of Health,NHS Business Services Authority,11/03/2022,NHS Pension Add Ers Cont,Statutory Payments,NHS PENSIONS ,0080128735,"440,000.00",ERS2518 EMPLOYER CONTRIBUTIONS FEB 2022,FY7 8LG
Department of Health,NHS Business Services Authority,11/03/2022,NHS Pension Add Ers Cont,Statutory Payments,NHS PENSIONS ,0080128736,"440,000.00",ERS2518 EMPLOYER CONTRIBUTIONS MAR 2022,FY7 8LG
Department of Health,NHS Business Services Authority,11/03/2022,NHS Pension Add Ers Cont,Statutory Payments,NHS PENSIONS ,0080128824,"373,890.00",ERS2518 EMPLOYER CONTRIBUTIONS INCREASE,FY7 8LG
Department of Health,NHS Business Services Authority,15/03/2022,Apprenticeship Levy,Corp Services & Corp Secretary,HM REVENUE & CUSTOMS 948PX00194660,0050039076,"45,963.00",LEVY,NE98 1ZZ
Department of Health,NHS Business Services Authority,15/03/2022,Income Tax,Statutory Payments,HM REVENUE & CUSTOMS 948PX00194660,0050039076,"823,360.50",948PX00194660/FEB22,NE98 1ZZ
Department of Health,NHS Business Services Authority,15/03/2022,National Insurance,Statutory Payments,HM REVENUE & CUSTOMS 948PX00194660,0050039076,605.64,REALTIME CLASS1A NIC,NE98 1ZZ
Department of Health,NHS Business Services Authority,15/03/2022,National Insurance,Statutory Payments,HM REVENUE & CUSTOMS 948PX00194660,0050039076,"610,394.63",948PX00194660/FEB22,NE98 1ZZ
Department of Health,NHS Business Services Authority,15/03/2022,National Insurance,Statutory Payments,HM REVENUE & CUSTOMS 948PX00194660,0050039076,"768,016.85",948PX00194660/FEB22,NE98 1ZZ
Department of Health,NHS Business Services Authority,15/03/2022,Student Loan,Statutory Payments,HM REVENUE & CUSTOMS 948PX00194660,0050039076,"36,618.00",948PX00194660/FEB22,NE98 1ZZ
Department of Health,NHS Business Services Authority,15/03/2022,SMP,Statutory Payments,HM REVENUE & CUSTOMS 948PX00194660,0050039076,"-45,332.87",SMP,NE98 1ZZ
Department of Health,NHS Business Services Authority,15/03/2022,SPP,Statutory Payments,HM REVENUE & CUSTOMS 948PX00194660,0050039076,"-1,537.91",SPP,NE98 1ZZ
Department of Health,NHS Business Services Authority,31/03/2022,Apprenticeship Levy,Corp Services & Corp Secretary,HM REVENUE & CUSTOMS 948PX00194660,0050039104,"47,791.00",LEVY,NE98 1ZZ
Department of Health,NHS Business Services Authority,31/03/2022,Income Tax,Statutory Payments,HM REVENUE & CUSTOMS 948PX00194660,0050039104,"912,212.14",948PX00194660/MAR22,NE98 1ZZ
Department of Health,NHS Business Services Authority,31/03/2022,National Insurance,Statutory Payments,HM REVENUE & CUSTOMS 948PX00194660,0050039104,"820,633.35",948PX00194660/MAR22,NE98 1ZZ
Department of Health,NHS Business Services Authority,31/03/2022,National Insurance,Statutory Payments,HM REVENUE & CUSTOMS 948PX00194660,0050039104,"644,932.45",948PX00194660/MAR22,NE98 1ZZ
Department of Health,NHS Business Services Authority,31/03/2022,National Insurance,Statutory Payments,HM REVENUE & CUSTOMS 948PX00194660,0050039104,870.17,948PX00194660/MAR22,NE98 1ZZ
Department of Health,NHS Business Services Authority,31/03/2022,Student Loan,Statutory Payments,HM REVENUE & CUSTOMS 948PX00194660,0050039104,"41,536.00",948PX00194660/MAR22,NE98 1ZZ
Department of Health,NHS Business Services Authority,31/03/2022,SMP,Statutory Payments,HM REVENUE & CUSTOMS 948PX00194660,0050039104,"-46,051.38",SMP,NE98 1ZZ
Department of Health,NHS Business Services Authority,31/03/2022,SPP,Statutory Payments,HM REVENUE & CUSTOMS 948PX00194660,0050039104,"-1,258.29",SPP,NE98 1ZZ
Department of Health,NHS Business Services Authority,31/03/2022,PC Purchases,Citizen Services,GO 2 TELECOM LTD,0080129596,"2,486.40",Product Code:  PLDA70V  -  Plantronics ,WA3 6BT
Department of Health,NHS Business Services Authority,31/03/2022,PC Purchases,Citizen Services,GO 2 TELECOM LTD,0080129596,"5,023.20",Product Code: PLDA80V  - Poly DA80 USB ,WA3 6BT
Department of Health,NHS Business Services Authority,31/03/2022,PC Purchases,Citizen Services,GO 2 TELECOM LTD,0080129596,"23,040.00",Product Code:  PLHW510V  -  Plantronics ,WA3 6BT
Department of Health,NHS Business Services Authority,31/03/2022,PC Purchases,Citizen Services,GO 2 TELECOM LTD,0080129596,"6,600.00",Product Code:  PLHW520V  -  Poly ,WA3 6BT
Department of Health,NHS Business Services Authority,31/03/2022,PC Purchases,Citizen Services,GO 2 TELECOM LTD,0080129596,"1,017.60",Product Code:  PLDA75  -  Poly DA75-M ,WA3 6BT
Department of Health,NHS Business Services Authority,18/03/2022,Dilapidations,Finance & Commercial,FLEXIFORM,0080129055,"33,696.00",5th Floor Wakefield House moves and ,BD3 7AE
Department of Health,NHS Business Services Authority,15/03/2022,Professional Fees,NHS Workforce Services,ACUITY BUSINESS SOLUTIONS LTD,0080129043,"55,740.00","Consultancy for Pensions Flexibilities, ",EX2 8LB
Department of Health,NHS Business Services Authority,04/03/2022,Printing Charges (External),Citizen Services,XEROX UK LIMITED,0080128288,"27,562.49",Non Stationery - Xerox UK Ltd,WF2 0XF
Department of Health,NHS Business Services Authority,04/03/2022,Printing Charges (External),Citizen Services,XEROX UK LIMITED,0080128288,625.41,Non Stationery - Xerox UK Ltd,WF2 0XF
Department of Health,NHS Business Services Authority,29/03/2022,Printing Charges (External),Citizen Services,XEROX UK LIMITED,0080128997,650.09,Non Stationery - Xerox UK Ltd,WF2 0XF
Department of Health,NHS Business Services Authority,29/03/2022,Printing Charges (External),Citizen Services,XEROX UK LIMITED,0080128997,"23,043.90",Non Stationery - Xerox UK Ltd,WF2 0XF
Department of Health,NHS Business Services Authority,15/03/2022,Printing Charges (External),Citizen Services,XEROX UK LIMITED,0080129035,"25,128.43","Xerox UK Ltd - Production, ",WF2 0XF
Department of Health,NHS Business Services Authority,18/03/2022,Bank Charges,Citizen Services,ALLPAY LIMITED,0080128872,"39,297.88",PPC1,HR1 3SE
Department of Health,NHS Business Services Authority,25/03/2022,Hard FM Contract,Finance & Commercial,KIER FACILITIES SERVICES LTD,0080129217,"59,159.73",Kier Contract Extension,RG21 4HG
Department of Health,NHS Business Services Authority,11/03/2022,Medigold Medical Services,NHS Workforce Services,MEDIGOLD HEALTH CONSULTANCY,0080128942,"66,244.28",Provision of Services Agreement between ,NN4 7BF
Department of Health,NHS Business Services Authority,29/03/2022,Medigold Medical Services,NHS Workforce Services,MEDIGOLD HEALTH CONSULTANCY,0080129463,"55,531.51",Provision of Services Agreement between ,NN4 7BF
Department of Health,NHS Business Services Authority,18/03/2022,Rent,Finance & Commercial,SUFFOLK LIFE,0080129074,"160,000.00",RENT HESKETH HOUSE 25.03.22 - 23.06.22,IPL 1QJ
Department of Health,NHS Business Services Authority,22/03/2022,Credit Checks,NHS Workforce Services,ACCENTURE UK LIMITED,0080128749,"99,747.00",E04002 SOW005 � Primary Care to be ,EC3M 3BD
Department of Health,NHS Business Services Authority,08/03/2022,External Staff Costs,NHS Workforce Services,CLAYBROOK COMPUTING LTD,0080128877,"115,495.00",To provide a PO for Capital funding ,RH10 1UH
Department of Health,NHS Business Services Authority,11/03/2022,Claybrook IT App Support,NHS Workforce Services,CLAYBROOK COMPUTING LTD,0080128878,"190,140.25",Monthly standard product support and ,RH10 1UH
Department of Health,NHS Business Services Authority,22/03/2022,External Staff Costs,NHS Workforce Services,DIFRENT LTD,0080129317,"143,961.50",NHS JOBS CAPABILITY - SOW004 -,WC2R 0EX
Department of Health,NHS Business Services Authority,04/03/2022,Rent,NHS Workforce Services,CROWN HOSTING DATA CENTRES LTD,0080128789,"31,346.25","SRF001 - Rent, Power Charges & ",SN13 9GB
Department of Health,NHS Business Services Authority,04/03/2022,Electricity,NHS Workforce Services,CROWN HOSTING DATA CENTRES LTD,0080128789,"5,803.55","SRF001 - Rent, Power Charges & ",SN13 9GB
Department of Health,NHS Business Services Authority,04/03/2022,Rent,NHS Workforce Services,CROWN HOSTING DATA CENTRES LTD,0080128790,"37,940.54","SRF001 - Rent, Power Charges & ",SN13 9GB
Department of Health,NHS Business Services Authority,04/03/2022,Rent,NHS Workforce Services,CROWN HOSTING DATA CENTRES LTD,0080128790,449.62,"SRF001 - Rent, Power Charges & ",SN13 9GB
Department of Health,NHS Business Services Authority,04/03/2022,Electricity,NHS Workforce Services,CROWN HOSTING DATA CENTRES LTD,0080128790,83.24,"SRF001 - Rent, Power Charges & ",SN13 9GB
Department of Health,NHS Business Services Authority,04/03/2022,Electricity,NHS Workforce Services,CROWN HOSTING DATA CENTRES LTD,0080128790,"7,024.43","SRF001 - Rent, Power Charges & ",SN13 9GB
Department of Health,NHS Business Services Authority,29/03/2022,Rent,NHS Workforce Services,CROWN HOSTING DATA CENTRES LTD,0080129413,"31,346.35","SRF001 - Rent, Power Charges & ",SN13 9GB
Department of Health,NHS Business Services Authority,29/03/2022,Electricity,NHS Workforce Services,CROWN HOSTING DATA CENTRES LTD,0080129413,"5,803.57","SRF001 - Rent, Power Charges & ",SN13 9GB
Department of Health,NHS Business Services Authority,29/03/2022,Rent,NHS Workforce Services,CROWN HOSTING DATA CENTRES LTD,0080129414,"38,390.30","SRF001 - Rent, Power Charges & ",SN13 9GB
Department of Health,NHS Business Services Authority,29/03/2022,Electricity,NHS Workforce Services,CROWN HOSTING DATA CENTRES LTD,0080129414,"7,107.70","SRF001 - Rent, Power Charges & ",SN13 9GB
Department of Health,NHS Business Services Authority,15/03/2022,Professional Fees,Citizen Services,MASTEK UK LTD,0080128561,"49,320.00",B98033 Revenue SOW057 IHS Student Go ,RG1 8BW
Department of Health,NHS Business Services Authority,11/03/2022,Professional Fees,Primary Care Services,MASTEK UK LTD,0080128677,"13,481.25",B98036 SOW042 - GP Survey Alpha Plus. ,RG1 8BW
Department of Health,NHS Business Services Authority,11/03/2022,Professional Fees,Primary Care Services,MASTEK UK LTD,0080128677,"10,012.00",B98036 SOW042 - GP Survey Alpha Plus. ,RG1 8BW
Department of Health,NHS Business Services Authority,11/03/2022,Professional Fees,Primary Care Services,MASTEK UK LTD,0080128677,"23,329.75",B98036  SOW042 - GP Survey Alpha Plus. ,RG1 8BW
Department of Health,NHS Business Services Authority,22/03/2022,Professional Fees,Digital,MASTEK UK LTD,0080128794,"8,200.00",B98022 (Revenue) SOW006 OHS Operational ,RG1 8BW
Department of Health,NHS Business Services Authority,22/03/2022,Professional Fees,Digital,MASTEK UK LTD,0080128794,"5,280.00",B98022 (Revenue) SOW006 OHS Operational ,RG1 8BW
Department of Health,NHS Business Services Authority,22/03/2022,Digital Development Recharge,Digital,MASTEK UK LTD,0080128794,"44,957.86",B99209 (Capital) SOW006 OHS Operational ,RG1 8BW
Department of Health,NHS Business Services Authority,22/03/2022,External Project Support,Digital,MASTEK UK LTD,0080128794,"24,332.77",B99209 (Capital) SOW006 OHS Operational ,RG1 8BW
Department of Health,NHS Business Services Authority,18/03/2022,Professional Fees,Digital,MASTEK UK LTD,0080128795,"10,450.00",B98022 (Revenue) SOW005 Cost Recovery ,RG1 8BW
Department of Health,NHS Business Services Authority,18/03/2022,Digital Development Recharge,Digital,MASTEK UK LTD,0080128795,"35,300.00",B99209 (Capital) SOW005 Cost Recovery ,RG1 8BW
Department of Health,NHS Business Services Authority,15/03/2022,Professional Fees,Citizen Services,MASTEK UK LTD,0080128798,"16,300.00",B98042 (Revenue) SOW65 EIBSS Payments ,RG1 8BW
Department of Health,NHS Business Services Authority,15/03/2022,External Project Support,Citizen Services,MASTEK UK LTD,0080128798,"43,525.00",B99246 (Capital) SOW65 EIBSS Payments ,RG1 8BW
Department of Health,NHS Business Services Authority,18/03/2022,Professional Fees,Citizen Services,MASTEK UK LTD,0080129207,"22,365.00",B98032 SOW053  Death Certification ,RG1 8BW
Department of Health,NHS Business Services Authority,18/03/2022,Professional Fees,Primary Care Services,MASTEK UK LTD,0080129213,"79,169.50",B98036 - SOW042 - GP Survey Alpha Plus ,RG1 8BW
Department of Health,NHS Business Services Authority,22/03/2022,External Project Support,Citizen Services,MASTEK UK LTD,0080129307,"28,315.00",B99195 SOW061 Healthy Start. ,RG1 8BW
Department of Health,NHS Business Services Authority,29/03/2022,External Project Support,Citizen Services,MASTEK UK LTD,0080129308,"24,075.00",B99231 Capital SOW057 IHS Student Go ,RG1 8BW
Department of Health,NHS Business Services Authority,22/03/2022,Professional Fees,Primary Care Services,MASTEK UK LTD,0080129309,"35,820.00",B98036 SOW042  GP Survey Alpha Plus   ,RG1 8BW
Department of Health,NHS Business Services Authority,29/03/2022,External Project Support,Citizen Services,MASTEK UK LTD,0080129400,"33,540.00",B99234 (Capital) SOW075 Medical ,RG1 8BW
Department of Health,NHS Business Services Authority,29/03/2022,Professional Fees,COVID 19,MASTEK UK LTD,0080129403,"29,079.69",B08019 SOW055 CCN01 Faster Testing ,RG1 8BW
Department of Health,NHS Business Services Authority,29/03/2022,Professional Fees,COVID 19,MASTEK UK LTD,0080129404,"26,707.97",B08019 SOW055 Faster Testing Digital ,RG1 8BW
Department of Health,NHS Business Services Authority,31/03/2022,Professional Fees,Digital,MASTEK UK LTD,0080129504,"15,050.00",B98022 (Revenue) SOW007 Cost Recovery ,RG1 8BW
Department of Health,NHS Business Services Authority,31/03/2022,External Project Support,Digital,MASTEK UK LTD,0080129504,"36,475.00",B99209 (Capital) SOW007 Cost Recovery ,RG1 8BW
Department of Health,NHS Business Services Authority,31/03/2022,Subsistence,Digital,MASTEK UK LTD,0080129505,"35,750.00",B08013 Expanding Digital Capacity (EDC) ,RG1 8BW
Department of Health,NHS Business Services Authority,31/03/2022,Professional Fees,COVID 19,MASTEK UK LTD,0080129508,"24,426.65",B08019 SOW055 CCN01 Faster Testing ,RG1 8BW
Department of Health,NHS Business Services Authority,31/03/2022,Professional Fees,Primary Care Services,MASTEK UK LTD,0080129510,"33,600.00",B98036 SOW048 Insight GP Survey and ,RG1 8BW
Department of Health,NHS Business Services Authority,08/03/2022,Temporary Staff,Digital,ALEXANDER MANN SOLUTIONS,0080128023,"4,431.36",TEMP STAFF,
Department of Health,NHS Business Services Authority,08/03/2022,Staff Recharges,Digital,ALEXANDER MANN SOLUTIONS,0080128023,"3,323.52",TEMP STAFF,
Department of Health,NHS Business Services Authority,08/03/2022,External Staff Costs,Digital,ALEXANDER MANN SOLUTIONS,0080128023,"3,067.86",TEMP STAFF,
Department of Health,NHS Business Services Authority,08/03/2022,External Staff Costs,Citizen Services,ALEXANDER MANN SOLUTIONS,0080128023,"2,633.47",TEMP STAFF,
Department of Health,NHS Business Services Authority,08/03/2022,External Staff Costs,Citizen Services,ALEXANDER MANN SOLUTIONS,0080128023,"3,067.86",TEMP STAFF,
Department of Health,NHS Business Services Authority,08/03/2022,External Staff Costs,Citizen Services,ALEXANDER MANN SOLUTIONS,0080128023,"3,067.86",TEMP STAFF,
Department of Health,NHS Business Services Authority,08/03/2022,External Staff Costs,Digital,ALEXANDER MANN SOLUTIONS,0080128023,"3,156.12",TEMP STAFF,
Department of Health,NHS Business Services Authority,08/03/2022,External Staff Costs,NHS Workforce Services,ALEXANDER MANN SOLUTIONS,0080128023,"4,527.12",TEMP STAFF,
Department of Health,NHS Business Services Authority,08/03/2022,Temporary Staff,Digital,ALEXANDER MANN SOLUTIONS,0080128263,"4,431.36",TEMP STAFF,
Department of Health,NHS Business Services Authority,08/03/2022,Temporary Staff,Digital,ALEXANDER MANN SOLUTIONS,0080128263,"3,545.09",TEMP STAFF,
Department of Health,NHS Business Services Authority,08/03/2022,Temporary Staff,Digital,ALEXANDER MANN SOLUTIONS,0080128263,"4,431.36",TEMP STAFF,
Department of Health,NHS Business Services Authority,08/03/2022,Temporary Staff,Digital,ALEXANDER MANN SOLUTIONS,0080128263,"4,431.36",TEMP STAFF,
Department of Health,NHS Business Services Authority,08/03/2022,Temporary Staff,Digital,ALEXANDER MANN SOLUTIONS,0080128263,"3,323.52",TEMP STAFF,
Department of Health,NHS Business Services Authority,08/03/2022,Temporary Staff,Digital,ALEXANDER MANN SOLUTIONS,0080128263,"4,431.36",TEMP STAFF,
Department of Health,NHS Business Services Authority,08/03/2022,External Staff Costs,Digital,ALEXANDER MANN SOLUTIONS,0080128263,"3,291.84",TEMP STAFF,
Department of Health,NHS Business Services Authority,08/03/2022,External Staff Costs,Digital,ALEXANDER MANN SOLUTIONS,0080128263,"3,067.86",TEMP STAFF,
Department of Health,NHS Business Services Authority,08/03/2022,External Staff Costs,Digital,ALEXANDER MANN SOLUTIONS,0080128263,"4,090.44",TEMP STAFF,
Department of Health,NHS Business Services Authority,08/03/2022,External Staff Costs,Digital,ALEXANDER MANN SOLUTIONS,0080128263,"4,090.44",TEMP STAFF,
Department of Health,NHS Business Services Authority,08/03/2022,External Staff Costs,Citizen Services,ALEXANDER MANN SOLUTIONS,0080128263,"3,524.06",TEMP STAFF,
Department of Health,NHS Business Services Authority,08/03/2022,External Staff Costs,Citizen Services,ALEXANDER MANN SOLUTIONS,0080128263,"2,643.05",TEMP STAFF,
Department of Health,NHS Business Services Authority,08/03/2022,External Staff Costs,Digital,ALEXANDER MANN SOLUTIONS,0080128263,"3,156.12",TEMP STAFF,
Department of Health,NHS Business Services Authority,08/03/2022,External Staff Costs,NHS Workforce Services,ALEXANDER MANN SOLUTIONS,0080128263,"4,527.12",TEMP STAFF,
Department of Health,NHS Business Services Authority,08/03/2022,Temporary Staff,Digital,ALEXANDER MANN SOLUTIONS,0080128592,"4,179.70",TEMP STAFF,
Department of Health,NHS Business Services Authority,08/03/2022,Temporary Staff,Digital,ALEXANDER MANN SOLUTIONS,0080128592,"5,453.94",TEMP STAFF,
Department of Health,NHS Business Services Authority,08/03/2022,Temporary Staff,Digital,ALEXANDER MANN SOLUTIONS,0080128592,"4,431.36",TEMP STAFF,
Department of Health,NHS Business Services Authority,08/03/2022,Temporary Staff,Digital,ALEXANDER MANN SOLUTIONS,0080128592,"4,431.36",TEMP STAFF,
Department of Health,NHS Business Services Authority,08/03/2022,Temporary Staff,Digital,ALEXANDER MANN SOLUTIONS,0080128592,664.70,TEMP STAFF,
Department of Health,NHS Business Services Authority,08/03/2022,External Staff Costs,Digital,ALEXANDER MANN SOLUTIONS,0080128592,"3,067.86",TEMP STAFF,
Department of Health,NHS Business Services Authority,08/03/2022,External Staff Costs,Digital,ALEXANDER MANN SOLUTIONS,0080128592,"3,291.84",TEMP STAFF,
Department of Health,NHS Business Services Authority,08/03/2022,External Staff Costs,Citizen Services,ALEXANDER MANN SOLUTIONS,0080128592,"3,541.62",TEMP STAFF,
Department of Health,NHS Business Services Authority,08/03/2022,External Staff Costs,Citizen Services,ALEXANDER MANN SOLUTIONS,0080128592,"4,405.08",TEMP STAFF,
Department of Health,NHS Business Services Authority,08/03/2022,External Staff Costs,Digital,ALEXANDER MANN SOLUTIONS,0080128592,"3,156.12",TEMP STAFF,
Department of Health,NHS Business Services Authority,08/03/2022,External Staff Costs,NHS Workforce Services,ALEXANDER MANN SOLUTIONS,0080128592,"4,527.12",TEMP STAFF,
Department of Health,NHS Business Services Authority,08/03/2022,Temporary Staff,Digital,ALEXANDER MANN SOLUTIONS,0080128761,"4,431.36",TEMP STAFF,
Department of Health,NHS Business Services Authority,08/03/2022,Temporary Staff,Digital,ALEXANDER MANN SOLUTIONS,0080128761,"4,431.36",TEMP STAFF,
Department of Health,NHS Business Services Authority,08/03/2022,Temporary Staff,Digital,ALEXANDER MANN SOLUTIONS,0080128761,"4,399.68",TEMP STAFF,
Department of Health,NHS Business Services Authority,08/03/2022,Temporary Staff,Digital,ALEXANDER MANN SOLUTIONS,0080128761,"5,453.94",TEMP STAFF,
Department of Health,NHS Business Services Authority,08/03/2022,Temporary Staff,Digital,ALEXANDER MANN SOLUTIONS,0080128761,"4,399.68",TEMP STAFF,
Department of Health,NHS Business Services Authority,08/03/2022,External Staff Costs,Digital,ALEXANDER MANN SOLUTIONS,0080128761,"4,090.44",TEMP STAFF,
Department of Health,NHS Business Services Authority,08/03/2022,External Staff Costs,Digital,ALEXANDER MANN SOLUTIONS,0080128761,"4,090.45",TEMP STAFF,
Department of Health,NHS Business Services Authority,08/03/2022,External Staff Costs,Digital,ALEXANDER MANN SOLUTIONS,0080128761,"3,291.84",TEMP STAFF,
Department of Health,NHS Business Services Authority,08/03/2022,External Staff Costs,Digital,ALEXANDER MANN SOLUTIONS,0080128761,"2,633.47",TEMP STAFF,
Department of Health,NHS Business Services Authority,08/03/2022,External Staff Costs,Citizen Services,ALEXANDER MANN SOLUTIONS,0080128761,"3,541.62",TEMP STAFF,
Department of Health,NHS Business Services Authority,08/03/2022,External Staff Costs,Citizen Services,ALEXANDER MANN SOLUTIONS,0080128761,"2,454.26",TEMP STAFF,
Department of Health,NHS Business Services Authority,08/03/2022,External Staff Costs,Digital,ALEXANDER MANN SOLUTIONS,0080128761,"3,156.12",TEMP STAFF,
Department of Health,NHS Business Services Authority,08/03/2022,External Staff Costs,Digital,ALEXANDER MANN SOLUTIONS,0080128761,"3,156.12",TEMP STAFF,
Department of Health,NHS Business Services Authority,08/03/2022,External Staff Costs,NHS Workforce Services,ALEXANDER MANN SOLUTIONS,0080128761,"4,527.12",TEMP STAFF,
Department of Health,NHS Business Services Authority,04/03/2022,Temporary Staff,Citizen Services,ALEXANDER MANN SOLUTIONS,0080128763,"72,951.78",TEMP STAFF,
Department of Health,NHS Business Services Authority,18/03/2022,Temporary Staff,Digital,ALEXANDER MANN SOLUTIONS,0080128976,"4,431.36",TEMP STAFF,
Department of Health,NHS Business Services Authority,18/03/2022,Temporary Staff,COVID 19,ALEXANDER MANN SOLUTIONS,0080128976,"3,524.06",TEMP STAFF,
Department of Health,NHS Business Services Authority,18/03/2022,Temporary Staff,COVID 19,ALEXANDER MANN SOLUTIONS,0080128976,"4,405.08",TEMP STAFF,
Department of Health,NHS Business Services Authority,18/03/2022,External Staff Costs,Digital,ALEXANDER MANN SOLUTIONS,0080128976,"4,090.44",TEMP STAFF,
Department of Health,NHS Business Services Authority,18/03/2022,External Staff Costs,Digital,ALEXANDER MANN SOLUTIONS,0080128976,"3,067.86",TEMP STAFF,
Department of Health,NHS Business Services Authority,18/03/2022,External Staff Costs,Digital,ALEXANDER MANN SOLUTIONS,0080128976,"3,067.86",TEMP STAFF,
Department of Health,NHS Business Services Authority,18/03/2022,External Staff Costs,Citizen Services,ALEXANDER MANN SOLUTIONS,0080128976,"2,454.29",TEMP STAFF,
Department of Health,NHS Business Services Authority,11/03/2022,Temporary Staff,Citizen Services,ALEXANDER MANN SOLUTIONS,0080128977,"46,379.36",TEMP STAFF,
Department of Health,NHS Business Services Authority,18/03/2022,Temporary Staff,Citizen Services,ALEXANDER MANN SOLUTIONS,0080129137,"72,141.85",TEMP STAFF,
Department of Health,NHS Business Services Authority,29/03/2022,Temporary Staff,Citizen Services,ALEXANDER MANN SOLUTIONS,0080129418,"68,103.24",TEMP STAFF,
Department of Health,NHS Business Services Authority,31/03/2022,Temporary Staff,Citizen Services,ALEXANDER MANN SOLUTIONS,0080129563,"39,027.29",TEMP STAFF,
Department of Health,NHS Business Services Authority,04/03/2022,Cloud Storage,Digital,AGILISYS LIMITED,0080128708,"2,210.58",A98034 - Cloud Brokerage Services ,W12 7RZ
Department of Health,NHS Business Services Authority,04/03/2022,Cloud Storage,Digital,AGILISYS LIMITED,0080128708,"7,257.83",B08006 Agilisys AWS Cloud Brokerage ,W12 7RZ
Department of Health,NHS Business Services Authority,04/03/2022,Cloud Storage,Digital,AGILISYS LIMITED,0080128708,"3,549.67",B08010 - Cloud Brokerage Services ,W12 7RZ
Department of Health,NHS Business Services Authority,04/03/2022,Cloud Storage,Digital,AGILISYS LIMITED,0080128708,"19,507.26",B08013 - Cloud Brokerage Services ,W12 7RZ
Department of Health,NHS Business Services Authority,04/03/2022,Cloud Storage,Digital,AGILISYS LIMITED,0080128708,"6,097.33",B08014 - Cloud Brokerage Services ,W12 7RZ
Department of Health,NHS Business Services Authority,04/03/2022,Cloud Storage,Digital,AGILISYS LIMITED,0080128708,"6,468.83",B08016 - Cloud Brokerage Services ,W12 7RZ
Department of Health,NHS Business Services Authority,04/03/2022,Cloud Storage,Digital,AGILISYS LIMITED,0080128708,"9,723.85",B98022 - Cloud Brokerage Services ,W12 7RZ
Department of Health,NHS Business Services Authority,04/03/2022,Cloud Storage,Citizen Services,AGILISYS LIMITED,0080128708,"8,216.79",B98031 - Cloud Brokerage Services ,W12 7RZ
Department of Health,NHS Business Services Authority,04/03/2022,Cloud Storage,Citizen Services,AGILISYS LIMITED,0080128708,"3,613.74",B98032 - Cloud Brokerage Services ,W12 7RZ
Department of Health,NHS Business Services Authority,04/03/2022,Cloud Storage,Citizen Services,AGILISYS LIMITED,0080128708,"1,533.73",B98033 - Cloud Brokerage Services ,W12 7RZ
Department of Health,NHS Business Services Authority,04/03/2022,Cloud Storage,Primary Care Services,AGILISYS LIMITED,0080128708,"1,087.32",B98036 - Cloud Brokerage Services ,W12 7RZ
Department of Health,NHS Business Services Authority,04/03/2022,Cloud Storage,NHS Workforce Services,AGILISYS LIMITED,0080128708,"26,216.05",C03015 - Cloud Brokerage Services ,W12 7RZ
Department of Health,NHS Business Services Authority,04/03/2022,Cloud Storage,Primary Care Services,AGILISYS LIMITED,0080128708,557.56,D03001 - Cloud Brokerage Services ,W12 7RZ
Department of Health,NHS Business Services Authority,04/03/2022,Cloud Storage,Technology,AGILISYS LIMITED,0080128708,355.83,G10019 - Cloud Brokerage Services ,W12 7RZ
Department of Health,NHS Business Services Authority,04/03/2022,Cloud Storage,NHS Workforce Services,AGILISYS LIMITED,0080128708,"2,706.10",J01014 - Cloud Brokerage Services ,W12 7RZ
Department of Health,NHS Business Services Authority,04/03/2022,Cloud Storage,Citizen Services,AGILISYS LIMITED,0080128708,"2,654.32",P01001 - Cloud Brokerage Services ,W12 7RZ
Department of Health,NHS Business Services Authority,04/03/2022,Cloud Storage,Technology,AGILISYS LIMITED,0080128709,"1,691.42",G10006 - Cloud Brokerage Services ,W12 7RZ
Department of Health,NHS Business Services Authority,04/03/2022,Cloud Storage,Technology,AGILISYS LIMITED,0080128709,"45,007.77",G10014 - Cloud Brokerage Services ,W12 7RZ
Department of Health,NHS Business Services Authority,11/03/2022,External Staff Costs,NHS Workforce Services,AGILISYS LIMITED,0080128999,"30,000.00",PEN-MIG-5c,W12 7RZ
Department of Health,NHS Business Services Authority,11/03/2022,External Staff Costs,NHS Workforce Services,AGILISYS LIMITED,0080129000,"46,620.14",PEN-MIG-3a,W12 7RZ
Department of Health,NHS Business Services Authority,25/03/2022,Cloud Storage,Technology,AGILISYS LIMITED,0080129310,"1,682.82",G10006 - Cloud Brokerage Services ,W12 7RZ
Department of Health,NHS Business Services Authority,25/03/2022,Cloud Storage,Technology,AGILISYS LIMITED,0080129310,"43,100.46",G10014 - Cloud Brokerage Services ,W12 7RZ
Department of Health,NHS Business Services Authority,25/03/2022,Cloud Storage,Digital,AGILISYS LIMITED,0080129339,"2,165.19",A98034 - Cloud Brokerage Services ,W12 7RZ
Department of Health,NHS Business Services Authority,25/03/2022,Cloud Storage,Digital,AGILISYS LIMITED,0080129339,"6,970.48",B08006 Agilisys AWS Cloud Brokerage ,W12 7RZ
Department of Health,NHS Business Services Authority,25/03/2022,Cloud Storage,Digital,AGILISYS LIMITED,0080129339,"3,931.41",B08010 - Cloud Brokerage Services ,W12 7RZ
Department of Health,NHS Business Services Authority,25/03/2022,Cloud Storage,Digital,AGILISYS LIMITED,0080129339,"19,438.67",B08013 - Cloud Brokerage Services ,W12 7RZ
Department of Health,NHS Business Services Authority,25/03/2022,Cloud Storage,Digital,AGILISYS LIMITED,0080129339,"6,029.48",B08014 - Cloud Brokerage Services ,W12 7RZ
Department of Health,NHS Business Services Authority,25/03/2022,Cloud Storage,Digital,AGILISYS LIMITED,0080129339,"16,619.17",B08016 - Cloud Brokerage Services ,W12 7RZ
Department of Health,NHS Business Services Authority,25/03/2022,Cloud Storage,Citizen Services,AGILISYS LIMITED,0080129339,"6,969.17",B98031 - Cloud Brokerage Services ,W12 7RZ
Department of Health,NHS Business Services Authority,25/03/2022,Cloud Storage,Citizen Services,AGILISYS LIMITED,0080129339,"2,876.54",B98032 - Cloud Brokerage Services ,W12 7RZ
Department of Health,NHS Business Services Authority,25/03/2022,Cloud Storage,Citizen Services,AGILISYS LIMITED,0080129339,"1,301.82",B98033 - Cloud Brokerage Services ,W12 7RZ
Department of Health,NHS Business Services Authority,25/03/2022,Cloud Storage,Primary Care Services,AGILISYS LIMITED,0080129339,539.66,B98036 - Cloud Brokerage Services ,W12 7RZ
Department of Health,NHS Business Services Authority,25/03/2022,Cloud Storage,NHS Workforce Services,AGILISYS LIMITED,0080129339,"25,084.87",C03015 - Cloud Brokerage Services ,W12 7RZ
Department of Health,NHS Business Services Authority,25/03/2022,Cloud Storage,Primary Care Services,AGILISYS LIMITED,0080129339,551.33,D03001 - Cloud Brokerage Services ,W12 7RZ
Department of Health,NHS Business Services Authority,25/03/2022,Cloud Storage,Technology,AGILISYS LIMITED,0080129339,346.89,G10019 - Cloud Brokerage Services ,W12 7RZ
Department of Health,NHS Business Services Authority,25/03/2022,Cloud Storage,NHS Workforce Services,AGILISYS LIMITED,0080129339,"2,694.91",J01014 - Cloud Brokerage Services ,W12 7RZ
Department of Health,NHS Business Services Authority,25/03/2022,Cloud Storage,Citizen Services,AGILISYS LIMITED,0080129339,"2,394.23",P01001 - Cloud Brokerage Services ,W12 7RZ
Department of Health,NHS Business Services Authority,31/03/2022,Colocate - Unix,Technology,AGILISYS LIMITED,0080129470,"68,515.92",Colocate - Variable Charges,W12 7RZ
Department of Health,NHS Business Services Authority,31/03/2022,Local Server Rooms - Unix,Technology,AGILISYS LIMITED,0080129471,"21,438.54",NHSBSA LSR  -  Variable Charges,W12 7RZ
Department of Health,NHS Business Services Authority,31/03/2022,Local Server Rooms - Unix,Technology,AGILISYS LIMITED,0080129471,"111,395.86",NHSBSA LSR  -  Variable Charges,W12 7RZ
Department of Health,NHS Business Services Authority,31/03/2022,Local Server Rooms - Wintel,Technology,AGILISYS LIMITED,0080129471,"25,665.24",CFA LSR  -  Variable Charges,W12 7RZ
Department of Health,NHS Business Services Authority,31/03/2022,Local Server Rooms - Wintel,Technology,AGILISYS LIMITED,0080129471,"11,469.10",CFA LSR  -  Variable Charges,W12 7RZ
Department of Health,NHS Business Services Authority,31/03/2022,NHS Cloud - Wintel,Technology,AGILISYS LIMITED,0080129472,"110,139.98",NHS Cloud  -  Variable Charges,W12 7RZ
Department of Health,NHS Business Services Authority,31/03/2022,Colocate - Unix,Technology,AGILISYS LIMITED,0080129472,"26,921.12",Colocate - Variable Charges,W12 7RZ
Department of Health,NHS Business Services Authority,31/03/2022,Local Server Rooms - Unix,Technology,AGILISYS LIMITED,0080129472,"27,960.94",NHSBSA LSR  -  Variable Charges,W12 7RZ
Department of Health,NHS Business Services Authority,29/03/2022,Local Server Rooms - Unix,Technology,AGILISYS LIMITED,0080129482,"68,672.41",NHSBSA LSR  -  Variable Charges,W12 7RZ
Department of Health,NHS Business Services Authority,31/03/2022,External Staff Costs,NHS Workforce Services,AGILISYS LIMITED,0080129536,"27,163.59",Statement of Work AGI044 � Pensions ,W12 7RZ
Department of Health,NHS Business Services Authority,29/03/2022,LAN - NHSBSA,Technology,VIRGIN MEDIA BUSINESS LTD,0080129464,"59,142.50",Service Charges LAN: 1st April 2021 � ,BD4 8PW
Department of Health,NHS Business Services Authority,15/03/2022,Professional Fees,Citizen Services,INDESSER,0080129026,"91,120.80",EHIC RESIDENCY CHECK,LS1 4AP
Department of Health,NHS Business Services Authority,11/03/2022,Rent,Finance & Commercial,CANAL & RIVER TRUST,0080128631,"100,805.46",GREENFINCH RENT 25.03.22 - 23.06.22,LS9 8PB
Department of Health,NHS Business Services Authority,31/03/2022,Software Licences,Insight,BULIEN LLP,0080129407,"119,956.80",Bulien: Data Platform - Alteryx Licenses,NE4 5TF
Department of Health,NHS Business Services Authority,08/03/2022,Cloud Storage,Technology,CDW LIMITED,0080128882,"103,819.30",Data Monitoring Service,EC4M 9AF
Department of Health,NHS Business Services Authority,31/03/2022,Rent,Finance & Commercial,GOVERNMENT PROPERTY AGENCY,0080129352,"137,879.50",STELLA HOUSE MAN FEE/RENT,B2 5LS
Department of Health,NHS Business Services Authority,31/03/2022,Rent,Finance & Commercial,GOVERNMENT PROPERTY AGENCY,0080129352,"3,645.00",STELLA HOUSE MAN FEE/RENT,B2 5LS
Department of Health,NHS Business Services Authority,01/03/2022,Pensions Division,NHS Workforce Services,,,"1,823,413.52",Payments to Pensioners,
Department of Health,NHS Business Services Authority,01/03/2022,Dental Contractors,Primary Care Services,,,"227,032,634.00",Payments to Dental Contractors,
Department of Health,NHS Business Services Authority,10/03/2022,Pharmacy Contractors,Primary Care Services,,,"593,595,600.87",Payments to Pharmacy Contractors,
Department of Health,NHS Business Services Authority,01/03/2022,Pharmacy Contractors,Primary Care Services,,,"252,446,250.10",Payments to Pharmacy Contractors,
Department of Health,NHS Business Services Authority,01/03/2022,Pharmacy Contractors,Primary Care Services,,,"7,218,984.64",Payments to Pharmacy Contractors,
Department of Health,NHS Business Services Authority,31/03/2022,Pharmacy Contractors,Primary Care Services,,,"7,146,200.17",Payments to Pharmacy Contractors,
Department of Health,NHS Business Services Authority,02/03/2022,Pharmacy Contractors,Primary Care Services,,,"1,720,610.01",Payments to Pharmacy Contractors,
